Cogmind - Beta 16 @@@ ROGUE MODE // 2025.10.22 @ 01:58:18 Player: alice_fexa Result: Destroyed by 4W-M6O(R) with Subdweller Beam Cannon Performance ------------- Evolutions (0) 0 Regions Visited (3) 600 Robots Destroyed (39) 195 Value Destroyed (725) 725 Prototype IDs (3) 60 Alien Tech Used (0) 0 Bonus (0) 0 TOTAL SCORE: 1580 Bonus ------- None Cogmind --------- Core Integrity 0/250 Matter 223/300 Energy 122/125 System Corruption 0% Temperature Warm (182) Movement Treading (320) Ox2 Location -10/Subcaves Parts ------- > --- POWER (1) -------- Light Ion Engine > --- PROPULSION (2) --- Improved Treads Improved Treads > --- UTILITY (2) ------ Huge Storage Unit Hardened Light Armor Plating > --- WEAPON (2) ------- Subdweller Machine Gun Improved Light Cannon > --- INVENTORY (25) --- Light Ion Engine Improved Treads Improved Treads Compact Wheel Heat Sink Heat Sink High-capacity Storage Unit Large Matter Pod (150) Experimental Sensor Array Hardened Light Armor Plating Hardened Light Armor Plating Hardened Light Armor Plating Medium Laser Small Laser Assault Rifle Improved Light Cannon EMP Blaster Grenade Launcher Grenade Launcher Flail Peak State ------------ > --- POWER ------------ (None) > --- PROPULSION ------- Light Treads Wheel > --- UTILITY ---------- Huge Storage Unit Experimental Sensor Array > --- WEAPON ----------- Improved Light Cannon Improved Light Cannon > --- INVENTORY -------- Light Ion Engine Light Ion Engine Improved Treads Improved Treads Improved Treads Improved Treads Compact Wheel Heat Sink Heat Sink High-capacity Storage Unit Large Matter Pod Hardened Light Armor Plating Hardened Light Armor Plating Hardened Light Armor Plating Hardened Light Armor Plating EM Pulse Gun Medium Laser Small Laser Assault Rifle Improved Light Cannon Improved Light Cannon EMP Blaster Grenade Launcher Grenade Launcher Flail [Rating: 19] Favorites ----------- Power Light Ion Engine Engine Light Ion Engine Propulsion Light Treads Treads Light Treads Wheel Compact Wheel Utility Huge Storage Unit Device Heat Sink Storage Huge Storage Unit Processor Targeting Computer Protection Hardened Light Armor Plating Weapon Improved Light Cannon Energy Gun Medium Laser Ballistic Gun Assault Rifle Ballistic Cannon Improved Light Cannon Launcher Grenade Launcher Build | -11 -10 -10 -10 ------- Run | Yrd Mat Min Sub Slots Evolved . | . . . . Power . | . . . . Propulsion . | . . . . Utility . | . . . . Weapon . | . . . . Parts Attached 28 | 6 14 2 6 Power 3 | 1 1 . 1 Engine 3 | 1 1 . 1 Core . | . . . . Reactor . | . . . . Propulsion 8 | 2 3 1 2 Treads 4 | 1 1 . 2 Leg . | . . . . Wheel 4 | 1 2 1 . Hover . | . . . . Flight . | . . . . Utility 8 | 1 5 1 1 Device 3 | . 2 1 . Storage 3 | 1 2 . . Processor 1 | . 1 . . Hackware . | . . . . Protection 1 | . . . 1 Artifact . | . . . . Weapon 9 | 2 5 . 2 Energy Gun 2 | 1 1 . . Energy Cannon . | . . . . Ballistic Gun 2 | 1 . . 1 Ballistic Cannon 3 | . 2 . 1 Launcher 2 | . 2 . . Special Weapon . | . . . . Impact Weapon . | . . . . Slashing Weapon . | . . . . Piercing Weapon . | . . . . Special Melee Weapon . | . . . . Unidentified Prototypes 1 | . . 1 . Parts Lost 6 | . . . 6 Power 1 | . . . 1 Propulsion 2 | . . . 2 Utility 1 | . . . 1 Weapon 2 | . . . 2 Highest Loss Streak 4 | . . . 4 To Critical Strikes . | . . . . Average Backups 20 | 2 18 25 22 Power 1 | 1 1 2 1 Propulsion 5 | 1 5 5 3 Utility 5 | . 3 8 8 Weapon 8 | . 8 9 8 Tool/Special . | . . . . Unused Backups 21 | . 5 2 14 Power 1 | . . . 1 Propulsion 8 | . 4 1 3 Utility 7 | . 1 . 6 Weapon 5 | . . 1 4 Tool/Special . | . . . . Average Slot Usage (%) 99 | . 99 99 97 Engine 13 | . 14 13 12 Treads 15 | . 14 14 24 Wheel 12 | . 14 14 3 Device 11 | . 12 13 3 Storage 14 | . 14 14 14 Protection 1 | . . . 11 Energy Gun 3 | . 5 . . Ballistic Cannon 22 | . 19 28 27 Peak Build Rating 19 | 6 12 19 15 Average Rating 11 | 5 10 12 14 On Entrance 7 | . 6 12 13 Avg Prop Armor Cover (%) 11 | 13 11 10 10 Naked Turns . | . . . . Heaviest Build 96 | 12 92 92 96 Greatest Support 46 | 20 16 16 46 Greatest Overweight (x) 9 | 1 9 9 9 Average Overweight (x) 4 | . 4 7 4 Largest Inventory Capacity 25 | 8 25 25 25 Average Capacity 22 | 7 20 25 25 Most Carried 25 | 5 25 25 25 Average Carried 20 | 2 19 24 21 Final Capacity 25 | 8 25 25 25 Final Carried 25 | 5 25 25 20 Class Distribution -------------------- 100% | Mutant Dominant Class ---------------- Mutant | -10/Materials Mutant | -10/Mines Mutant | -10/Subcaves Resources | -11 -10 -10 -10 ----------- Run | Yrd Mat Min Sub Matter Collected 1255 | 263 541 264 187 Remotely . | . . . . Salvage Created 1071 | 100 737 169 65 Parts 63 | 3 36 16 8 Haulers Intercepted 2 | . 2 . . Recyclers Shooed 1 | . 1 . . Parts Field Recycled . | . . . . Retrieved Matter . | . . . . Parts Self-Destructed 4 | . . . 4 Prevented . | . . . . Parts Restored . | . . . . Kills | -11 -10 -10 -10 ------- Run | Yrd Mat Min Sub Combat Hostiles Destroyed 26 | . 16 6 4 Guns 5 | . 5 . . Cannons 15 | . 5 6 4 AOE 6 | . 6 . . Classes Destroyed 9 | 1 5 1 2 Worker 1 | . 1 . . Tunneler 1 | . . 1 . Hauler 2 | . 2 . . Recycler 6 | 1 3 2 . Watcher 3 | . 3 . . Swarmer 13 | . 7 6 . Grunt 9 | . 9 . . Artisan 1 | . . . 1 Subdweller 4 | . . . 4 Best Kill Streak 4 | 1 4 3 3 Combat Bots Only 3 | . 3 3 3 Max Kills in Single Turn 2 | 1 2 1 1 Gunslinging . | . . . . Exploded 2 | . 2 . . Melee . | . . . . Uniques/NPCs Destroyed . | . . . . Combat | -11 -10 -10 -10 -------- Run | Yrd Mat Min Sub Hostile Shots Fired 129 | . 62 22 45 Missed 32 | . 16 7 9 Hits 97 | . 46 15 36 Projectile 97 | . 46 15 36 Critical Strikes 3 | . 2 . 1 Damage Taken 1382 | . 504 118 760 Core 265 | . 98 . 167 Absorbed by Shields . | . . . . Core Remaining (%) 100 | 100 . . . Volleys Fired 116 | 1 71 14 30 Largest 2 | 2 2 2 2 Hottest 90 | 70 90 66 66 Shots Fired 224 | 2 134 28 60 Gun 85 | 2 80 . 3 Cannon 132 | . 47 28 57 Launcher 7 | . 7 . . Special . | . . . . Kinetic 157 | 1 68 28 60 Thermal 60 | 1 59 . . Explosive 4 | . 4 . . Electromagnetic 3 | . 3 . . Robot Hit Streak 14 | 1 9 4 14 Robot Miss Streak 7 | . 7 2 1 Penetration Max . | . . . . Secondary Targets 1 | . 1 . . Max Gunslinging Chain 1 | . 1 . . Shots Hit Robots 153 | 1 88 17 47 Core Hits 54 | 1 35 9 9 Critical Kills . | . . . . Critical Parts Destroyed 1 | . 1 . . Critical Strikes 6 | . 4 . 2 Burn 2 | . 2 . . Destroy 1 | . 1 . . Blast 3 | . 1 . 2 Melee Attacks . | . . . . Impact . | . . . . Slashing . | . . . . Piercing . | . . . . Sneak Attacks . | . . . . Combat Hostiles . | . . . . Follow-up Attacks . | . . . . Damage Inflicted 2969 | 15 1584 404 966 Guns 795 | 15 715 . 65 Cannons 1850 | . 545 404 901 Explosions 324 | . 324 . . Melee . | . . . . Ramming . | . . . . Kinetic 2105 | 15 720 404 966 Thermal 540 | . 540 . . Explosive 182 | . 182 . . Electromagnetic 142 | . 142 . . Impact . | . . . . Slashing . | . . . . Piercing . | . . . . Highest Corruption . | . . . . Average Corruption . | . . . . Corruption Purged . | . . . . Corruption Blocked . | . . . . Overload Shots . | . . . . Overflow Damage 42 | . 14 28 . Projectiles 42 | . 14 28 . Explosions . | . . . . Melee . | . . . . Knockbacks 20 | . 3 1 16 Impact . | . . . . Kinetic 20 | . 3 1 16 Secondary . | . . . . Self-Inflicted Damage . | . . . . Shots . | . . . . Rammed . | . . . . Targets Rammed . | . . . . Kicked . | . . . . Crushed . | . . . . Highest Temperature 274 | 9 156 . 274 Average Temperature 56 | 6 45 . 213 Received Heat Transfer 657 | . 234 . 423 Siege Activations . | . . . . Martial Activations . | . . . . Shielding Activations . | . . . . Robots Disrupted . | . . . . Combat Hostiles . | . . . . Robots Corrupted . | . . . . Combat Hostiles . | . . . . Parts Fried . | . . . . Impact Corruptions . | . . . . Robots Melted . | . . . . Combat Hostiles . | . . . . Parts Melted 4 | . 4 . . Heat Transferred 1621 | . 1621 . . Parts Sabotaged . | . . . . Parts Stolen . | . . . . Parts Stripped . | . . . . Power Chain Reactions 2 | . 2 . . Alert | -11 -10 -10 -10 ------- Run | Yrd Mat Min Sub Maximum Alert Level 1 | . 1 . . Low Security (%) 93 | 100 90 100 . Level 1 6 | . 9 . . Level 2 . | . . . . Level 3 . | . . . . Level 4 . | . . . . Level 5 . | . . . . High Security . | . . . . Max Security . | . . . . Peak Influence 230 | 5 230 67 . Initial 64 | . . 64 . Average 64 | . 87 20 . Influence Increases 777 | 5 601 171 . Destroy 0b10 Robot/C 440 | . 320 120 . Destroy 0b10 Robot/NC 65 | 5 45 15 . Destroy Leader 90 | . 70 20 . Successful Hack 27 | . 27 . . Disable Machine 30 | . 30 . . Destroy Structure 35 | . 34 1 . Lose Combat Pursuer 90 | . 75 15 . Influence Decreases 777 | 5 436 321 15 Entered New Map 109 | . . 101 8 Time Decay 668 | 5 436 220 7 Squads Dispatched 3 | . 3 . . Investigation 3 | . 3 . . Extermination . | . . . . Reinforcement . | . . . . Assault . | . . . . Garrison . | . . . . Intercept . | . . . . Searches Triggered . | . . . . Construction Impeded . | . . . . Haulers Reinforced . | . . . . Active Scanning Responses . | . . . . Cargo Convoy Interrupts . | . . . . Stealth | -11 -10 -10 -10 --------- Run | Yrd Mat Min Sub Distress Signals 3 | . 3 . . Communications Jammed . | . . . . Distress Signals . | . . . . Times Spotted 33 | . 21 7 5 Peak Tracking Total 3 | . 3 3 2 Tactical Retreats 4 | . 3 1 . Traps | -11 -10 -10 -10 ------- Run | Yrd Mat Min Sub Traps Triggered 2 | . 2 . . Indirectly . | . . . . Trap Hack Attempts . | . . . . Triggered . | . . . . Disarmed . | . . . . Reprogrammed . | . . . . Reused . | . . . . Traps Extracted . | . . . . Installed . | . . . . Triggered . | . . . . Machines | -11 -10 -10 -10 ---------- Run | Yrd Mat Min Sub Machines Disabled 2 | . 2 . . Max in Single Turn 1 | . 1 . . Machines Repaired . | . . . . Machines Dismantled . | . . . . Machines Sabotaged . | . . . . Overloaded Fab Kills . | . . . . Hacking | -11 -10 -10 -10 --------- Run | Yrd Mat Min Sub Machines Accessed 11 | . 11 . . Terminals 8 | . 8 . . Fabricators . | . . . . Repair Stations 1 | . 1 . . Recycling Units 2 | . 2 . . Scanalyzers . | . . . . Garrison Access . | . . . . Total Hacks 22 | . 22 . . Successful 12 | . 12 . . Failed 10 | . 10 . . Catastrophic 1 | . 1 . . Database Lockouts . | . . . . Manual 15 | . 15 . . Terminals 17 | . 17 . . Fabricators . | . . . . Repair Stations 1 | . 1 . . Recycling Units 4 | . 4 . . Scanalyzers . | . . . . Garrison Access . | . . . . Terminal Hacks 5 | . 5 . . Part Schematic 1 | . 1 . . Robot Analysis 2 | . 2 . . Prototype ID Bank 1 | . 1 . . Locate Traps 1 | . 1 . . Fabricator Hacks . | . . . . Repair Station Hacks . | . . . . Recycling Unit Hacks 1 | . 1 . . Retrieve Components 1 | . 1 . . Scanalyzer . | . . . . Garrison Access Hacks . | . . . . Unauthorized Hacks 6 | . 6 . . Terminals 6 | . 6 . . Botnet 1 | . 1 . . Skim 5 | . 5 . . Fabricators . | . . . . Repair Stations . | . . . . Recycling Units . | . . . . Scanalyzers . | . . . . Garrison Access . | . . . . Data Cores Recovered . | . . . . Used . | . . . . Hacking Detections 9 | . 9 . . Full Trace Events 1 | . 1 . . Feedback Events . | . . . . Feedback Blocked . | . . . . Robot Schematics Acquired . | . . . . Robots Built . | . . . . Authchips . | . . . . Time . | . . . . Total Robot Build Rating . | . . . . Part Schematics Acquired 1 | . 1 . . Parts Built . | . . . . Authchips . | . . . . Time . | . . . . Total Part Build Rating . | . . . . Part Studies Acquired . | . . . . Parts Repaired . | . . . . Time . | . . . . Parts Recycled . | . . . . Recycled Matter . | . . . . Retrieved Matter . | . . . . Retrieved Components 9 | . 9 . . Parts Scanalyzed . | . . . . Part Schematics Acquired . | . . . . Parts Damaged . | . . . . Bothacking | -11 -10 -10 -10 ------------ Run | Yrd Mat Min Sub Used RIF Installer . | . . . . Robots Hacked . | . . . . Non-combat . | . . . . Combat . | . . . . Robot Hacks Applied . | . . . . Relay Couplers Released . | . . . . Fabnet Peak Effective % . | . . . . Robots Rewired . | . . . . Allies Hacked . | . . . . Hacks Repelled . | . . . . Allies | -11 -10 -10 -10 -------- Run | Yrd Mat Min Sub Total Allies . | . . . . Largest Group . | . . . . Highest-Rated Group . | . . . . Highest-Rated Ally . | . . . . Total Orders . | . . . . Ally Attacks . | . . . . Total Damage . | . . . . Kills . | . . . . Allies Corrupted . | . . . . Allies Melted . | . . . . Intel | -11 -10 -10 -10 ------- Run | Yrd Mat Min Sub Active Infowar (turns) 1 | . . 1 . Sensors 1 | . . 1 . Robot Analysis Total 2 | . 2 . . Derelict Logs Recovered 2 | . . 1 1 Drone Launches . | . . . . Drone Recoveries . | . . . . Exploration | -11 -10 -10 -10 ------------- Run | Yrd Mat Min Sub Turns Passed 3263 | 65 1882 908 408 Spaces Moved 1553 | 52 982 417 102 Core 2 | 2 . . . Treads 72 | 1 . . 71 Legs . | . . . . Wheels 1479 | 49 982 417 31 Hover . | . . . . Flight . | . . . . Fastest Speed 50 | 50 95 175 215 Average Speed 172 | 91 153 198 286 Slowest Speed 320 | 160 215 215 320 Overloaded Moves . | . . . . Propulsion Burnouts . | . . . . Robots Hopped . | . . . . Potential Cave-ins . | . . . . Cave-ins Triggered . | . . . . Exploration Rate (%) 48 | 4 98 84 8 Regions Visited 3 Branch Regions 2 Pre-discovered Areas 1 | . 1 . . Known Exits Taken 1 | . . 1 . Unknown Exits Taken 2 | 1 1 . . Scrap Searched 3 | . . 3 . Spaces Dug 7 | . 7 . . Terrain Destroyed 32 | . 31 1 . Melee . | . . . . Projectile 3 | . 2 1 . AOE 29 | . 29 . . Terrain Rammed . | . . . . Walls Destroyed . | . . . . Machines Disabled . | . . . . Actions | -11 -10 -10 -10 --------- Run | Yrd Mat Min Sub Total 1920 | 64 1223 473 160 Wait 155 | 1 102 31 21 Move 1550 | 51 981 416 102 Hop . | . . . . Pick Up 37 | 5 29 2 1 Fast Attach 14 | 6 5 3 . Attach 7 | . 1 . 6 Detach 3 | . 3 . . Swap 15 | . 14 1 . Drop 23 | . 17 6 . Fire 116 | 1 71 14 30 Melee . | . . . . Ram . | . . . . Kick . | . . . . Crush . | . . . . Escape Stasis . | . . . . Rewire . | . . . . Trap . | . . . . Miscellaneous . | . . . . Route ------- -11/Scrapyard -10/Materials (discovered 5 exits: *Mat x3 / [*Min] / Sub) -10/Mines (discovered 4 exits: *Mat x2 / *Exi / *Sub) -10/Subcaves (discovered 3 exits: Mat x2 / Rec) History --------- Turn | Location | Event 17 | -11/Scrapyard | Discovered new exit (range 16) 66 | -11/Scrapyard | Entered Materials 304 | -10/Materials | Build established: Mutant 449 | -10/Materials | Discovered new exit (range 12) 913 | -10/Materials | Discovered new exit (range 8) 1164 | -10/Materials | Discovered new exit (range 7) 1259 | -10/Materials | Learned location of Mines (-10) 1328 | -10/Materials | Learned location of 2 exits from Subcaves 1379 | -10/Materials | Discovered new exit (range 9) 1386 | -10/Materials | Learned Storage stockpile data 1436 | -10/Materials | Identified exit to Subcaves 1436 | -10/Materials | Learned location of 1 exit from Materials 1476 | -10/Materials | Learned 2 Mines zone layouts 1527 | -10/Materials | Learned location of 2 exits from Mines 1599 | -10/Materials | Learned Materials emergency access door positions 1653 | -10/Materials | Learned location of 1 exit from Recycling 1948 | -10/Materials | Entered Mines 1949 | -10/Mines | Identified exit to Materials 1949 | -10/Mines | Identified exit to Exiles 1960 | -10/Mines | Deemed a non-threat by the Exiles lab entrance 2419 | -10/Mines | Found a damaged Exp. Sensor Array with a note attached 2426 | -10/Mines | Found Prototype Device 2426 | -10/Mines | Identified Exp. Sensor Array 2535 | -10/Mines | Learned Materials terminal intel 2845 | -10/Mines | Discovered exit to Subcaves (range 6) 2856 | -10/Mines | Entered Subcaves 2857 | -10/Subcaves | Approached by a straggling Scientist 2857 | -10/Subcaves | Identified exit to Recycling 2857 | -10/Subcaves | Identified exit to Materials 2938 | -10/Subcaves | Core integrity fell below 50% 2979 | -10/Subcaves | Lost 4 parts (2n1u1w) 3251 | -10/Subcaves | Ambushed by angry Subdweller bent on revenge 3261 | -10/Subcaves | Core integrity fell below 20% 3264 | -10/Subcaves | Destroyed by 4W-M6O(R) with Subdweller Beam Cannon Last Messages --------------- 03106_ Subatomizers dissect the Sub. Monowheel. 03127_ Acquired 2 matter. 03131_ M5-BWW(u) builds Twisted Machinery. 03136_ Acquired 46 matter. 03139_ Acquired 5 matter. 03143_ Acquired 11 matter. 03156_ M5-BWW(u) tweaks Twisted Machinery. 03162_ Subatomizers dissect the Sub. Monowheel. 03176_ M5-BWW(u) tweaks Twisted Machinery. 03177_ Subatomizers dissect the Sub. Monowheel. 03198_ M5-BWW(u) tweaks Twisted Machinery. 03238_ M5-BWW(u) knocked back. 03241_ M5-BWW(u) cries out in pain. 03241_ M5-BWW(u) destroyed. 03251_ 4W-M6O(R) angrily emerges from the Twisted Machinery. 03251_ 4W-M6O(R): "ECOKILL!" 03254_ Acquired 4 matter. 03254_ Imp. Light Cannon destroyed. 03256_ Critical hit (Meltdown: +300). 03264_ 4W-M6O(R) knocked back. Map ----- +----------------------------------------------------+ | | | | | | | | | ?????????????????????????????????????????????????? | | ?????????????????????????????????????????????????? | | ?????????????????????????????????????????????????? | | ?????????????????????????????????????????????????? | | ?????????????????????????????????????????????????? | | ?????????????????????????????????????????????????? | | ?????????????????????????????????????????????????? | | ?????????????????????????????????????????????????? | | ?????????????????????????????????????????????????? | | ?????????????????????????????????????????????????? | | ?????????????????????????????????????????????????? | | ?????????????????????????????????????????????????? | | ?????????????????????????????????????????????????? | | ?????????????????????????????????????????????????? | | ????????????####???#########?????????????????????# | | ???????????## #?## "##????#####??###?????## | | ??????????## ?# " "?????# #### ##?#### | | ?????????## ??# #???????# ## ### ## | | ?????????# ##??# ######### | | ?????????? #?##% # & | | ????????????# "### =% & # # | | ?????????????# " # R @ *%"""""" | | ?????????????# " """"";""#"= # = | | ?????????????# " " %## ##### ## | | ????????????# ## ##### ##??# =#### ## | | ???????????# ?###???# ???## #??# = #? | | ?????????? ????????# #??# #?## ##? | | ???????? ?????????# ##?# ### ## #?? | | ???????##### ??????????## #?# ## ### #?? | | ???????????##???????????# ## ## #? | | ???????????????????????? | | ???????????????????????? #### | | ???????????????????????? #???### #### | | ??????????????????????? #??????# #??? | | ??????????????????????### ### #???????# #?? | | ????????????????????????###??##???????? ? | | ??????????????????????????????????????? " | | ??????????????????????????????????????? | | ??????????????????????????????????????? ## | | ??????????????????????????????????????? ## ##? | | ??????????????????????????????????????? ## #?? | | ??????????????????????????????????????? ?? ##?? | | ??????????????????????????????????????? ?? ???? | | ??????????????????????????????????????? ?? ???? | | ?????????????????????????????????????????????????? | | ?????????????????????????????????????????????????? | +----------------------------------------------------+ Best States ------------- Heat Dissipation 35 Energy Generation 10 Energy Capacity 125 Matter Stores 300 Matter Capacity 300 Sight Range 16 Terrain Scan Density 10 Armor Coverage 150 Evasion (%) 44 Targeting Accuracy 5 Recoil Reduction 2 Item Schematics ----------------- Hcp. Storage Unit | -10/Materials | Hacked Robot Schematics ------------------ None Fabricated ------------ Nothing Repaired ---------- Nothing Studied --------- None Alien Tech Used ----------------- None Achievements -------------- None Challenges ------------ None Game ------ Seed MicroHardlightReplica Manual? 0 Play Time 00:13:41 Cumulative 1583.1 hours Start 2025.10.22 @ 01:45:38 End 2025.10.22 @ 01:58:18 Sessions 1 Manual Loads 0 Difficulty Rogue Special Mode None Game No. 1123 Rogue 1083 Adventurer 40 Explorer 0 Win Type - Total 200 Types 86/10/74/2/2/4/16/2/1/3 Lore% 97 Gallery% 97 Achievement% 75 Wizard Run 0 Options --------- Layout 0 ASCII 0 Keyboard 0 Movement Numpad Keybinds 0 Fullscreen 0 Font 20/Terminus Map View 76x50 Zoom Use 0% Tactical HUD 1 Map Filters NONE Filters NONE Steam 1 RUN: 3d126f6c-abe1-4e22-a049-30bdfaafb38c